{"text_format":"3","workbook":"xlsx","n_sheets":3,"sheets":["Histórias","Envios","Publicações"],"not_rendered":{"images":1,"defined_names":2},"read":"whole","date_system":"1900"}

{"sheet":"Histórias","index":0,"n_rows":10,"n_cols":7,"rows_kept":10}
[{"$nulls":6}," "]
[]
[]
[null,"Título","Status","Contagem de Palavras","Tipo de História","Resumo"]
[null,"Ligação ao Anoitecer","Completo",{"v":5710,"d":"5,710"},"Conto","Suspense leve sobre um detetive disfarçado."]
[null,"O Papel de Parede Azul","Completo",{"v":4525,"d":"4,525"},"Conto","História inspiradora de design residencial."]
[null,"Amor após Amor","Completo",438,"Postagem de blog","Uma história de segunda chance no amor."]
[null,"O Terno mais Perigoso","Em Andamento",550,"Promoção","Material publicitário para um designer de camiseta."]
[null,"A Missão Lendária","Completo",520,"Postagem de blog","História rápida de uma missão espacial."]
[null,"Tempo Herdado","Completo",290,"Postagem de blog","Artigo esportivo sobre a última partida."]

{"sheet":"Envios","index":1,"n_rows":11,"n_cols":8,"rows_kept":11}
[{"$nulls":7}," "]
[]
[]
[null,"Data \nEnviado","Título da História","Nome da Publicação","Status","Data \nPublicado","Pagamento \nRecebido"]
[null,{"$f":"TODAY()-21","v":"2022-07-25"},"Ligação ao Anoitecer","Young at Heart Magazine","Recusada"]
[null,{"$f":"TODAY()-9","v":"2022-08-06"},"O Papel de Parede Azul","Young at Heart Magazine","Aceita",{"$f":"TODAY()-4","v":"2022-08-11"},{"v":300,"d":"R$ 300.00 "}]
[null,{"$f":"TODAY()-9","v":"2022-08-06"},"O Papel de Parede Azul","Digital Grounds","Aceita",{"$f":"TODAY()-2","v":"2022-08-13"},{"v":350,"d":"R$ 350.00 "}]
[null,{"$f":"TODAY()-7","v":"2022-08-08"},"Amor após Amor","Get This!","Enviada"]
[null,{"$f":"TODAY()-6","v":"2022-08-09"},"A Missão Lendária","Digital Grounds","Aceita",{"$f":"TODAY()-4","v":"2022-08-11"},{"v":150,"d":"R$ 150.00 "}]
[null,{"$f":"TODAY()-6","v":"2022-08-09"},"Tempo Herdado","Get This!","Aceita",{"$f":"TODAY()-3","v":"2022-08-12"},{"v":100,"d":"R$ 100.00 "}]
[null,{"$f":"TODAY()-6","v":"2022-08-09"},"Tempo Herdado","Digital Grounds","Enviada"]

{"sheet":"Publicações","index":2,"n_rows":7,"n_cols":8,"rows_kept":7}
[{"$nulls":7}," "]
[]
[]
[null,"Nome","Tipo","Prazos","Total \nEnvios","Total\nAceito","Total \nLucros"]
[null,"Digital Grounds","Outro","Duas semanas após a solicitação",{"$f":"COUNTIF(Tabela_Envios[Nome da Publicação],Tabela_Publicações[[#This Row],[Nome]])","v":3},{"$f":"COUNTIFS(Tabela_Envios[Nome da Publicação],Tabela_Publicações[[#This Row],[Nome]],Tabela_Envios[Status],\"Aceita\")","v":2},{"$f":"SUMIF(Tabela_Envios[Nome da Publicação],Tabela_Publicações[[#This Row],[Nome]],Tabela_Envios[Pagamento \nRecebido])","v":{"v":500,"d":"R$ 500.00 "}}]
[null,"Young at Heart Magazine","SFWA","Todo 3ª dia do mês",{"$f":"COUNTIF(Tabela_Envios[Nome da Publicação],Tabela_Publicações[[#This Row],[Nome]])","v":2},{"$f":"COUNTIFS(Tabela_Envios[Nome da Publicação],Tabela_Publicações[[#This Row],[Nome]],Tabela_Envios[Status],\"Aceita\")","v":1},{"$f":"SUMIF(Tabela_Envios[Nome da Publicação],Tabela_Publicações[[#This Row],[Nome]],Tabela_Envios[Pagamento \nRecebido])","v":{"v":300,"d":"R$ 300.00 "}}]
[null,"Get This!","SFWA","Todas às segundas-feiras",{"$f":"COUNTIF(Tabela_Envios[Nome da Publicação],Tabela_Publicações[[#This Row],[Nome]])","v":2},{"$f":"COUNTIFS(Tabela_Envios[Nome da Publicação],Tabela_Publicações[[#This Row],[Nome]],Tabela_Envios[Status],\"Aceita\")","v":1},{"$f":"SUMIF(Tabela_Envios[Nome da Publicação],Tabela_Publicações[[#This Row],[Nome]],Tabela_Envios[Pagamento \nRecebido])","v":{"v":100,"d":"R$ 100.00 "}}]